[Event "November 21 Late 2023"]
[Site "https://www.chess.com"]
[Date "2023.11.21"]
[Round "2"]
[White "Sivakumar, Shaaketh"]
[Black "Nita, Lucian"]
[Result "1-0"]
[Board "108"]
[TimeControl "180+1"]
[WhiteFideId "30940176"]
[BlackFideId "1206923"]
[WhiteElo "2292"]
[BlackElo "2066"]
[WhiteTeam "USA"]
[BlackTeam "ROU"]
[WhiteClock "0:00:47"]
[BlackClock "0:00:38"]

1. c4 {[%clk 0:03:00]}  d6 {[%clk 0:03:00]} 2. Nf3 {[%clk 0:02:13]}  Nf6 {[%clk 0:03:01]} 3. g3 {[%clk 0:01:56]}  Nbd7 {[%clk 0:03:02]} 4. Bg2 {[%clk 0:01:54]}  e5 {[%clk 0:03:03]} 5. Nc3 {[%clk 0:01:39]}  Be7 {[%clk 0:03:03]} 6. d3 {[%clk 0:01:27]}  O-O {[%clk 0:03:03]} 7. O-O {[%clk 0:01:27]}  c6 {[%clk 0:03:03]} 8. b4 {[%clk 0:01:28]}  a5 {[%clk 0:03:02]} 9. b5 {[%clk 0:01:26]}  c5 {[%clk 0:03:01]} 10. a4 {[%clk 0:01:26]}  Rb8 {[%clk 0:03:00]} 11. e3 {[%clk 0:01:26]}  b6 {[%clk 0:03:00]} 12. d4 {[%clk 0:01:26]}  exd4 {[%clk 0:02:52]} 13. exd4 {[%clk 0:01:27]}  Re8 {[%clk 0:02:50]} 14. d5 {[%clk 0:01:16]}  Bf8 {[%clk 0:02:49]} 15. Bb2 {[%clk 0:01:16]}  g6 {[%clk 0:02:43]} 16. Qc2 {[%clk 0:01:15]}  Bg7 {[%clk 0:02:43]} 17. Rae1 {[%clk 0:01:10]}  Nf8 {[%clk 0:02:38]} 18. Nd2 {[%clk 0:01:01]}  Rb7 {[%clk 0:02:33]} 19. h3 {[%clk 0:01:01]}  Rbe7 {[%clk 0:02:31]} 20. Rxe7 {[%clk 0:01:01]}  Qxe7 {[%clk 0:02:30]} 21. g4 {[%clk 0:01:01]}  g5 {[%clk 0:02:19]} 22. Kh1 {[%clk 0:01:01]}  h6 {[%clk 0:02:19]} 23. Nf3 {[%clk 0:01:00]}  Ng6 {[%clk 0:02:18]} 24. Re1 {[%clk 0:00:59]}  Qd8 {[%clk 0:02:17]} 25. Rxe8+ {[%clk 0:00:59]}  Qxe8 {[%clk 0:02:17]} 26. Qe2 {[%clk 0:01:00]}  Qd8 {[%clk 0:02:06]} 27. Qe3 {[%clk 0:00:57]}  Nf4 {[%clk 0:02:04]} 28. Bf1 {[%clk 0:00:57]}  Bd7 {[%clk 0:01:57]} 29. Ne2 {[%clk 0:00:57]}  Ng6 {[%clk 0:01:56]} 30. Ng3 {[%clk 0:00:57]}  Ne8 {[%clk 0:01:53]} 31. Bc1 {[%clk 0:00:53]}  Nf4 {[%clk 0:01:47]} 32. Qe4 {[%clk 0:00:49]}  Nf6 {[%clk 0:01:37]} 33. Qc2 {[%clk 0:00:49]}  Qe7 {[%clk 0:01:34]} 34. Be3 {[%clk 0:00:50]}  Nxg4 {[%clk 0:01:29]} 35. hxg4 {[%clk 0:00:49]}  Bxg4 {[%clk 0:01:29]} 36. Nh2 {[%clk 0:00:47]}  Bd7 {[%clk 0:01:24]} 37. Qe4 {[%clk 0:00:41]}  Qf6 {[%clk 0:01:18]} 38. Bxf4 {[%clk 0:00:40]}  gxf4 {[%clk 0:01:17]} 39. Nh5 {[%clk 0:00:39]}  Qa1 {[%clk 0:01:17]} 40. Nxg7 {[%clk 0:00:38]}  Kxg7 {[%clk 0:01:12]} 41. Qxf4 {[%clk 0:00:37]}  Qxa4 {[%clk 0:01:07]} 42. Qxd6 {[%clk 0:00:37]}  Bf5 {[%clk 0:01:07]} 43. Qe5+ {[%clk 0:00:36]}  Kg6 {[%clk 0:01:06]} 44. Nf3 {[%clk 0:00:35]}  Qc2 {[%clk 0:01:00]} 45. Nh4+ {[%clk 0:00:35]}  Kg5 {[%clk 0:01:00]} 46. Qxf5+ {[%clk 0:00:29]}  Qxf5 {[%clk 0:00:59]} 47. Nxf5 {[%clk 0:00:29]}  Kxf5 {[%clk 0:00:55]} 48. Bd3+ {[%clk 0:00:30]}  Ke5 {[%clk 0:00:55]} 49. f4+ {[%clk 0:00:30]}  Kd6 {[%clk 0:00:40]} 50. Kg2 {[%clk 0:00:28]}  a4 {[%clk 0:00:40]} 51. Kf3 {[%clk 0:00:29]}  a3 {[%clk 0:00:40]} 52. Bb1 {[%clk 0:00:30]}  f5 {[%clk 0:00:32]} 53. Kg3 {[%clk 0:00:30]}  Ke7 {[%clk 0:00:26]} 54. Kh4 {[%clk 0:00:30]}  Kf6 {[%clk 0:00:25]} 55. Kh5 {[%clk 0:00:30]}  Kg7 {[%clk 0:00:25]} 56. d6 {[%clk 0:00:28]}  Kf6 {[%clk 0:00:25]} 57. Kxh6 {[%clk 0:00:26]}  Ke6 {[%clk 0:00:23]} 58. Kg6 {[%clk 0:00:27]}  Kxd6 {[%clk 0:00:23]} 59. Kxf5 {[%clk 0:00:27]}  Ke7 {[%clk 0:00:23]} 60. Ke5 {[%clk 0:00:27]}  Kf7 {[%clk 0:00:23]} 61. f5 {[%clk 0:00:27]}  Ke7 {[%clk 0:00:23]} 62. f6+ {[%clk 0:00:27]}  Kd7 {[%clk 0:00:23]} 63. f7 {[%clk 0:00:26]}  Ke7 {[%clk 0:00:21]} 64. f8=N {[%clk 0:00:26]}  Kxf8 {[%clk 0:00:21]} 65. Kd6 {[%clk 0:00:26]}  Ke8 {[%clk 0:00:20]} 66. Ba2 {[%clk 0:00:27]}  Kd8 {[%clk 0:00:19]} 67. Kc6 {[%clk 0:00:28]}  Kc8 {[%clk 0:00:19]} 68. Kxb6 {[%clk 0:00:29]}  Kb8 {[%clk 0:00:20]} 69. Kxc5 {[%clk 0:00:30]}  Ka8 {[%clk 0:00:21]} 70. Kb4 {[%clk 0:00:29]}  Kb7 {[%clk 0:00:22]} 71. Kxa3 {[%clk 0:00:30]}  Kb6 {[%clk 0:00:22]} 72. Kb4 {[%clk 0:00:31]}  Kb7 {[%clk 0:00:22]} 73. Bb1 {[%clk 0:00:32]}  Ka7 {[%clk 0:00:23]} 74. Bc2 {[%clk 0:00:33]}  Kb8 {[%clk 0:00:23]} 75. Bd1 {[%clk 0:00:34]}  Ka7 {[%clk 0:00:24]} 76. Be2 {[%clk 0:00:34]}  Kb8 {[%clk 0:00:25]} 77. Bf1 {[%clk 0:00:35]}  Ka7 {[%clk 0:00:25]} 78. Bg2 {[%clk 0:00:36]}  Kb6 {[%clk 0:00:26]} 79. Bh1 {[%clk 0:00:37]}  Ka7 {[%clk 0:00:27]} 80. Bf3 {[%clk 0:00:38]}  Kb8 {[%clk 0:00:28]} 81. Be4 {[%clk 0:00:39]}  Ka7 {[%clk 0:00:29]} 82. Bd3 {[%clk 0:00:40]}  Kb8 {[%clk 0:00:29]} 83. c5 {[%clk 0:00:40]}  Ka7 {[%clk 0:00:30]} 84. Bc4 {[%clk 0:00:41]}  Kb8 {[%clk 0:00:31]} 85. Bb3 {[%clk 0:00:41]}  Ka7 {[%clk 0:00:32]} 86. Ba2 {[%clk 0:00:42]}  Kb8 {[%clk 0:00:33]} 87. Bb1 {[%clk 0:00:43]}  Ka7 {[%clk 0:00:34]} 88. Bc2 {[%clk 0:00:44]}  Kb8 {[%clk 0:00:35]} 89. Bd3 {[%clk 0:00:45]}  Ka7 {[%clk 0:00:36]} 90. Be4 {[%clk 0:00:46]}  Kb8 {[%clk 0:00:37]} 91. Bf5 {[%clk 0:00:47]}  Ka7 {[%clk 0:00:38]} 92. Bg6 {[%clk 0:00:47]}  Kb8 {[%clk 0:00:38]} 93. Bh7 {[%clk 0:00:48]}  Ka7 {[%clk 0:00:39]} 94. Bg8 {[%clk 0:00:49]}  Kb8 {[%clk 0:00:40]} 95. Bf7 {[%clk 0:00:50]}  Ka7 {[%clk 0:00:41]} 96. Be6 {[%clk 0:00:51]}  Kb8 {[%clk 0:00:42]} 97. Bd5 {[%clk 0:00:52]}  Ka7 {[%clk 0:00:42]} 98. Bf3 {[%clk 0:00:53]}  Kb8 {[%clk 0:00:43]} 99. Bg4 {[%clk 0:00:53]}  Ka7 {[%clk 0:00:44]} 100. Bh3 {[%clk 0:00:54]}  Kb8 {[%clk 0:00:45]} 101. Bg2 {[%clk 0:00:55]}  Ka7 {[%clk 0:00:45]} 102. b6+ {[%clk 0:00:55]}  Kb8 {[%clk 0:00:46]} 103. c6 {[%clk 0:00:55]}  Kc8 {[%clk 0:00:46]} 104. Kc5 {[%clk 0:00:53]}  Kb8 {[%clk 0:00:46]} 105. Bh3 {[%clk 0:00:54]}  Ka8 {[%clk 0:00:46]} 106. c7 {[%clk 0:00:55]}  Kb7 {[%clk 0:00:45]} 107. Bg2+ {[%clk 0:00:56]}  Kc8 {[%clk 0:00:44]} 108. Bf1 {[%clk 0:00:56]}  Kb7 {[%clk 0:00:44]} 109. Bb5 {[%clk 0:00:54]}  Kc8 {[%clk 0:00:43]} 110. Ba6+ {[%clk 0:00:54]}  Kd7 {[%clk 0:00:42]} 111. c8=B+ {[%clk 0:00:54]}  Kd8 {[%clk 0:00:41]} 112. Kc6 {[%clk 0:00:54]}  Ke7 {[%clk 0:00:40]} 113. b7 {[%clk 0:00:55]}  Kf6 {[%clk 0:00:39]} 114. b8=B {[%clk 0:00:56]}  Kg5 {[%clk 0:00:38]} 115. Kd5 {[%clk 0:00:55]}  Kh4 {[%clk 0:00:39]} 116. Be2 {[%clk 0:00:55]}  Kg5 {[%clk 0:00:40]} 117. Ke5 {[%clk 0:00:54]}  Kg6 {[%clk 0:00:39]} 118. Ba7 {[%clk 0:00:53]}  Kf7 {[%clk 0:00:40]} 119. Be6+ {[%clk 0:00:52]}  Ke7 {[%clk 0:00:40]} 120. Bc5+ {[%clk 0:00:53]}  Kd8 {[%clk 0:00:41]} 121. Bb6+ {[%clk 0:00:52]}  Ke7 {[%clk 0:00:40]} 122. Kf5 {[%clk 0:00:52]}  Kd6 {[%clk 0:00:40]} 123. Bd4 {[%clk 0:00:51]}  Kc6 {[%clk 0:00:40]} 124. Ke5 {[%clk 0:00:51]}  Kc7 {[%clk 0:00:40]} 125. Bb5 {[%clk 0:00:49]}  Kb7 {[%clk 0:00:40]} 126. Kd6 {[%clk 0:00:49]}  Ka8 {[%clk 0:00:39]} 127. Bb6 {[%clk 0:00:47]}  Kb7 {[%clk 0:00:39]} 128. Bc5 {[%clk 0:00:47]}  Ka8 {[%clk 0:00:40]} 129. Kc6 {[%clk 0:00:44]}  Kb8 {[%clk 0:00:39]} 130. Kb6 {[%clk 0:00:45]}  Ka8 {[%clk 0:00:39]} 131. Bc6+ {[%clk 0:00:46]}  Kb8 {[%clk 0:00:38]} 132. Bd6# {[%clk 0:00:47]} 1-0

[Event "November 21 Late 2023"]
[Site "https://www.chess.com"]
[Date "2023.11.21"]
[Round "2"]
[White "ciutadella"]
[Black "Todorovic, Bojan"]
[Result "1-0"]
[Board "112"]
[TimeControl "180+1"]
[BlackFideId "917087"]
[WhiteElo "2524"]
[BlackElo "2266"]
[BlackTeam "SRB"]
[WhiteClock "0:01:13"]
[BlackClock "0:00:08"]

1. Nf3 {[%clk 0:03:00]}  g6 {[%clk 0:02:58]} 2. d4 {[%clk 0:03:00]}  Bg7 {[%clk 0:02:58]} 3. c4 {[%clk 0:03:00]}  d6 {[%clk 0:02:58]} 4. Nc3 {[%clk 0:03:01]}  Bg4 {[%clk 0:02:55]} 5. e3 {[%clk 0:02:59]}  Nd7 {[%clk 0:02:44]} 6. Be2 {[%clk 0:02:58]}  c6 {[%clk 0:02:43]} 7. h3 {[%clk 0:02:57]}  Bxf3 {[%clk 0:02:43]} 8. Bxf3 {[%clk 0:02:58]}  Ngf6 {[%clk 0:02:42]} 9. O-O {[%clk 0:02:57]}  O-O {[%clk 0:02:42]} 10. b4 {[%clk 0:02:57]}  Qc7 {[%clk 0:02:31]} 11. Rb1 {[%clk 0:02:57]}  e5 {[%clk 0:02:21]} 12. a4 {[%clk 0:02:49]}  Rfe8 {[%clk 0:02:18]} 13. Ba3 {[%clk 0:02:48]}  Nf8 {[%clk 0:02:06]} 14. Qd2 {[%clk 0:02:39]}  Ne6 {[%clk 0:01:57]} 15. d5 {[%clk 0:02:37]}  Ng5 {[%clk 0:01:56]} 16. Be2 {[%clk 0:02:32]}  Nge4 {[%clk 0:01:42]} 17. Nxe4 {[%clk 0:02:31]}  Nxe4 {[%clk 0:01:42]} 18. Qd3 {[%clk 0:02:23]}  cxd5 {[%clk 0:01:37]} 19. cxd5 {[%clk 0:02:16]}  Nc3 {[%clk 0:01:28]} 20. Rbc1 {[%clk 0:02:15]}  Nxe2+ {[%clk 0:01:28]} 21. Qxe2 {[%clk 0:02:15]}  Qd7 {[%clk 0:01:26]} 22. b5 {[%clk 0:02:06]}  Rec8 {[%clk 0:01:22]} 23. Qd2 {[%clk 0:01:59]}  e4 {[%clk 0:01:11]} 24. Qb4 {[%clk 0:01:49]}  f5 {[%clk 0:00:39]} 25. Qxd6 {[%clk 0:01:39]}  Qxd6 {[%clk 0:00:38]} 26. Bxd6 {[%clk 0:01:40]}  Rd8 {[%clk 0:00:39]} 27. Bf4 {[%clk 0:01:34]}  Rxd5 {[%clk 0:00:35]} 28. Rc7 {[%clk 0:01:34]}  b6 {[%clk 0:00:35]} 29. Rfc1 {[%clk 0:01:31]}  Be5 {[%clk 0:00:29]} 30. Bxe5 {[%clk 0:01:30]}  Rxe5 {[%clk 0:00:29]} 31. Rd7 {[%clk 0:01:25]}  Rc5 {[%clk 0:00:25]} 32. Rxc5 {[%clk 0:01:13]}  bxc5 {[%clk 0:00:25]} 33. Rc7 {[%clk 0:01:14]}  a6 {[%clk 0:00:14]} 34. b6 {[%clk 0:01:13]}  a5 {[%clk 0:00:08]} 35. b7 {[%clk 0:01:13]} 1-0

[Event "November 21 Late 2023"]
[Site "https://www.chess.com"]
[Date "2023.11.21"]
[Round "2"]
[White "Leschinsky, Gary"]
[Black "Tologon tegin, Semetei"]
[Result "0-1"]
[Board "113"]
[TimeControl "180+1"]
[WhiteFideId "30951321"]
[BlackFideId "13800574"]
[WhiteElo "2020"]
[BlackElo "2258"]
[WhiteTeam "USA"]
[BlackTeam "KGZ"]
[WhiteClock "0:00:01"]
[BlackClock "0:00:06"]

1. d4 {[%clk 0:03:00]}  d5 {[%clk 0:02:54]} 2. c4 {[%clk 0:02:58]}  e6 {[%clk 0:02:54]} 3. Nc3 {[%clk 0:02:57]}  Nf6 {[%clk 0:02:54]} 4. cxd5 {[%clk 0:02:58]}  exd5 {[%clk 0:02:55]} 5. Bg5 {[%clk 0:02:57]}  Be7 {[%clk 0:02:55]} 6. e3 {[%clk 0:02:58]}  O-O {[%clk 0:02:55]} 7. Bd3 {[%clk 0:02:58]}  Nbd7 {[%clk 0:02:55]} 8. Qc2 {[%clk 0:02:54]}  Re8 {[%clk 0:02:55]} 9. Nge2 {[%clk 0:02:51]}  c6 {[%clk 0:02:51]} 10. O-O {[%clk 0:02:47]}  Ne4 {[%clk 0:02:47]} 11. Bf4 {[%clk 0:02:36]}  Nef6 {[%clk 0:02:19]} 12. Nb5 {[%clk 0:02:30]}  Nf8 {[%clk 0:02:07]} 13. Nc7 {[%clk 0:02:28]}  Bg4 {[%clk 0:02:07]} 14. Nxa8 {[%clk 0:02:26]}  Qxa8 {[%clk 0:02:07]} 15. f3 {[%clk 0:02:20]}  Bh5 {[%clk 0:02:08]} 16. e4 {[%clk 0:02:15]}  dxe4 {[%clk 0:02:06]} 17. fxe4 {[%clk 0:02:14]}  Qd8 {[%clk 0:02:02]} 18. Be3 {[%clk 0:02:02]}  Ng4 {[%clk 0:01:58]} 19. Qd2 {[%clk 0:02:01]}  Nxe3 {[%clk 0:01:54]} 20. Qxe3 {[%clk 0:02:01]}  Bg5 {[%clk 0:01:54]} 21. Qf2 {[%clk 0:02:00]}  Ne6 {[%clk 0:01:49]} 22. Rad1 {[%clk 0:01:46]}  Qb6 {[%clk 0:01:35]} 23. Ng3 {[%clk 0:01:11]}  Bh4 {[%clk 0:01:23]} 24. Bc4 {[%clk 0:00:58]}  Ng5 {[%clk 0:00:49]} 25. Qf4 {[%clk 0:00:42]}  Bxg3 {[%clk 0:00:37]} 26. hxg3 {[%clk 0:00:37]}  h6 {[%clk 0:00:25]} 27. g4 {[%clk 0:00:29]}  Bg6 {[%clk 0:00:22]} 28. e5 {[%clk 0:00:28]}  Ne6 {[%clk 0:00:19]} 29. Qf2 {[%clk 0:00:23]}  Rd8 {[%clk 0:00:19]} 30. Bxe6 {[%clk 0:00:19]}  fxe6 {[%clk 0:00:20]} 31. g5 {[%clk 0:00:17]}  h5 {[%clk 0:00:19]} 32. Qe3 {[%clk 0:00:16]}  Kh7 {[%clk 0:00:19]} 33. Rf2 {[%clk 0:00:16]}  Qa6 {[%clk 0:00:15]} 34. b3 {[%clk 0:00:15]}  Qa3 {[%clk 0:00:14]} 35. Rf4 {[%clk 0:00:15]}  Qb4 {[%clk 0:00:14]} 36. Rdf1 {[%clk 0:00:15]}  Qe7 {[%clk 0:00:13]} 37. Qg3 {[%clk 0:00:14]}  c5 {[%clk 0:00:10]} 38. dxc5 {[%clk 0:00:14]}  Qxc5+ {[%clk 0:00:11]} 39. Qf2 {[%clk 0:00:13]}  Qxe5 {[%clk 0:00:11]} 40. Rf8 {[%clk 0:00:12]}  Rd4 {[%clk 0:00:10]} 41. Rf4 {[%clk 0:00:12]}  Rd3 {[%clk 0:00:09]} 42. Rf3 {[%clk 0:00:11]}  Rd6 {[%clk 0:00:09]} 43. Qh4 {[%clk 0:00:11]}  Rd4 {[%clk 0:00:08]} 44. Rf4 {[%clk 0:00:11]}  Qe3+ {[%clk 0:00:08]} 45. Qf2 {[%clk 0:00:10]}  Qxf2+ {[%clk 0:00:05]} 46. R1xf2 {[%clk 0:00:11]}  Rd5 {[%clk 0:00:06]} 47. Re2 {[%clk 0:00:10]}  Bf5 {[%clk 0:00:05]} 48. Rb4 {[%clk 0:00:08]}  b6 {[%clk 0:00:05]} 49. Rc4 {[%clk 0:00:08]}  Rd7 {[%clk 0:00:03]} 50. Rc6 {[%clk 0:00:07]}  Kg6 {[%clk 0:00:04]} 51. Kh2 {[%clk 0:00:07]}  Kxg5 {[%clk 0:00:04]} 52. Kg3 {[%clk 0:00:07]}  h4+ {[%clk 0:00:04]} 53. Kf2 {[%clk 0:00:07]}  Kg4 {[%clk 0:00:04]} 54. Rc4+ {[%clk 0:00:06]}  Kh5 {[%clk 0:00:04]} 55. Rf4 {[%clk 0:00:06]}  g5 {[%clk 0:00:04]} 56. Rc4 {[%clk 0:00:05]}  g4 {[%clk 0:00:04]} 57. Rc8 {[%clk 0:00:04]}  Kg5 {[%clk 0:00:04]} 58. Rg8+ {[%clk 0:00:04]}  Kf4 {[%clk 0:00:05]} 59. g3+ {[%clk 0:00:04]}  hxg3+ {[%clk 0:00:05]} 60. Kg2 {[%clk 0:00:04]}  Be4+ {[%clk 0:00:05]} 61. Rxe4+ {[%clk 0:00:04]}  Kxe4 {[%clk 0:00:05]} 62. Rxg4+ {[%clk 0:00:05]}  Kd3 {[%clk 0:00:04]} 63. Rxg3+ {[%clk 0:00:05]}  Kc2 {[%clk 0:00:05]} 64. Re3 {[%clk 0:00:05]}  Rd6 {[%clk 0:00:05]} 65. Kf3 {[%clk 0:00:04]}  Kb2 {[%clk 0:00:05]} 66. a4 {[%clk 0:00:05]}  Ka3 {[%clk 0:00:05]} 67. Ke4 {[%clk 0:00:05]}  Kb4 {[%clk 0:00:05]} 68. Ke5 {[%clk 0:00:05]}  Rc6 {[%clk 0:00:06]} 69. Kd4 {[%clk 0:00:05]}  a5 {[%clk 0:00:06]} 70. Rd3 {[%clk 0:00:01]}  Rd6+ {[%clk 0:00:06]} 0-1

[Event "November 21 Late 2023"]
[Site "https://www.chess.com"]
[Date "2023.11.21"]
[Round "2"]
[White "Gallegos Diaz, Carlos Alberto"]
[Black "Toniutti, Ezio"]
[Result "0-1"]
[Board "114"]
[TimeControl "180+1"]
[WhiteFideId "3900886"]
[BlackFideId "113034"]
[WhiteElo "2362"]
[BlackElo "2215"]
[WhiteTeam "VEN"]
[BlackTeam "ARG"]
[WhiteClock "0:00:08"]
[BlackClock "0:00:29"]

1. e4 {[%clk 0:03:00]}  e5 {[%clk 0:02:59]} 2. Nf3 {[%clk 0:03:00]}  Nc6 {[%clk 0:02:57]} 3. Bb5 {[%clk 0:03:00]}  a6 {[%clk 0:02:57]} 4. Ba4 {[%clk 0:02:59]}  d6 {[%clk 0:02:57]} 5. O-O {[%clk 0:02:58]}  Bg4 {[%clk 0:02:55]} 6. d3 {[%clk 0:02:46]}  Qf6 {[%clk 0:02:54]} 7. Bxc6+ {[%clk 0:02:39]}  bxc6 {[%clk 0:02:54]} 8. Be3 {[%clk 0:02:34]}  Bxf3 {[%clk 0:02:50]} 9. Qxf3 {[%clk 0:02:33]}  Qxf3 {[%clk 0:02:49]} 10. gxf3 {[%clk 0:02:34]}  Ne7 {[%clk 0:02:49]} 11. f4 {[%clk 0:02:00]}  exf4 {[%clk 0:02:43]} 12. Bxf4 {[%clk 0:01:59]}  g5 {[%clk 0:02:43]} 13. Bd2 {[%clk 0:01:45]}  Bg7 {[%clk 0:02:41]} 14. Bc3 {[%clk 0:01:42]}  Rg8 {[%clk 0:02:36]} 15. Bxg7 {[%clk 0:01:30]}  Rxg7 {[%clk 0:02:35]} 16. Nc3 {[%clk 0:01:31]}  Kd7 {[%clk 0:02:30]} 17. Rae1 {[%clk 0:01:08]}  f5 {[%clk 0:02:26]} 18. e5 {[%clk 0:01:06]}  Ng6 {[%clk 0:02:22]} 19. exd6 {[%clk 0:00:59]}  cxd6 {[%clk 0:02:22]} 20. Re3 {[%clk 0:00:56]}  f4 {[%clk 0:02:18]} 21. Rh3 {[%clk 0:00:48]}  Rb8 {[%clk 0:02:13]} 22. b3 {[%clk 0:00:46]}  Re8 {[%clk 0:02:00]} 23. Ne4 {[%clk 0:00:45]}  Re5 {[%clk 0:01:52]} 24. Rh6 {[%clk 0:00:32]}  Kc7 {[%clk 0:01:48]} 25. c4 {[%clk 0:00:26]}  f3 {[%clk 0:01:31]} 26. Rd1 {[%clk 0:00:21]}  Nf4 {[%clk 0:01:28]} 27. Rxd6 {[%clk 0:00:18]}  g4 {[%clk 0:01:12]} 28. Kf1 {[%clk 0:00:18]}  Rh5 {[%clk 0:01:08]} 29. Ke1 {[%clk 0:00:15]}  Rxh2 {[%clk 0:01:06]} 30. Kd2 {[%clk 0:00:16]}  g3 {[%clk 0:01:04]} 31. Ke3 {[%clk 0:00:14]}  gxf2 {[%clk 0:00:52]} 32. Kxf4 {[%clk 0:00:12]}  Rg1 {[%clk 0:00:51]} 33. Nxf2 {[%clk 0:00:08]}  Rxd1 {[%clk 0:00:29]} 0-1

[Event "November 21 Late 2023"]
[Site "https://www.chess.com"]
[Date "2023.11.21"]
[Round "2"]
[White "Kovacsy, Barnabas"]
[Black "Bugayev, Vladimir"]
[Result "0-1"]
[Board "115"]
[TimeControl "180+1"]
[WhiteFideId "769290"]
[BlackFideId "30901480"]
[WhiteElo "2130"]
[BlackElo "2357"]
[WhiteTeam "HUN"]
[BlackTeam "USA"]
[WhiteClock "0:01:10"]
[BlackClock "0:01:09"]

1. e4 {[%clk 0:03:00]}  c6 {[%clk 0:02:59]} 2. d4 {[%clk 0:03:00]}  d5 {[%clk 0:02:59]} 3. Nc3 {[%clk 0:03:01]}  dxe4 {[%clk 0:02:59]} 4. Nxe4 {[%clk 0:03:02]}  Nf6 {[%clk 0:02:59]} 5. Nxf6+ {[%clk 0:03:02]}  exf6 {[%clk 0:03:00]} 6. c3 {[%clk 0:03:02]}  Bd6 {[%clk 0:03:00]} 7. Bd3 {[%clk 0:03:02]}  O-O {[%clk 0:03:01]} 8. Ne2 {[%clk 0:03:02]}  Re8 {[%clk 0:03:01]} 9. O-O {[%clk 0:03:02]}  Nd7 {[%clk 0:03:01]} 10. Bf4 {[%clk 0:03:01]}  Nf8 {[%clk 0:03:01]} 11. Bxd6 {[%clk 0:03:01]}  Qxd6 {[%clk 0:03:01]} 12. Ng3 {[%clk 0:02:59]}  g6 {[%clk 0:02:51]} 13. Ne4 {[%clk 0:02:59]}  Qd8 {[%clk 0:02:50]} 14. Re1 {[%clk 0:02:59]}  Be6 {[%clk 0:02:50]} 15. Qd2 {[%clk 0:02:56]}  Kg7 {[%clk 0:02:50]} 16. b3 {[%clk 0:02:53]}  h6 {[%clk 0:02:42]} 17. Rad1 {[%clk 0:02:52]}  b6 {[%clk 0:02:40]} 18. Bc4 {[%clk 0:02:40]}  f5 {[%clk 0:02:38]} 19. Ng3 {[%clk 0:02:36]}  Qg5 {[%clk 0:02:32]} 20. Qxg5 {[%clk 0:02:29]}  hxg5 {[%clk 0:02:33]} 21. Bxe6 {[%clk 0:02:26]}  fxe6 {[%clk 0:02:32]} 22. Nf1 {[%clk 0:02:25]}  Kf6 {[%clk 0:02:27]} 23. Ne3 {[%clk 0:02:25]}  b5 {[%clk 0:02:21]} 24. c4 {[%clk 0:02:22]}  a6 {[%clk 0:02:20]} 25. f3 {[%clk 0:02:21]}  Rad8 {[%clk 0:02:19]} 26. Kf2 {[%clk 0:02:21]}  Nd7 {[%clk 0:02:10]} 27. d5 {[%clk 0:02:11]}  cxd5 {[%clk 0:02:08]} 28. cxd5 {[%clk 0:02:11]}  e5 {[%clk 0:02:08]} 29. Rc1 {[%clk 0:02:09]}  Rc8 {[%clk 0:02:05]} 30. Rc6+ {[%clk 0:02:08]}  Rxc6 {[%clk 0:02:01]} 31. dxc6 {[%clk 0:02:09]}  Nb6 {[%clk 0:02:02]} 32. Rc1 {[%clk 0:02:07]}  Rc8 {[%clk 0:01:55]} 33. c7 {[%clk 0:02:06]}  Ke7 {[%clk 0:01:37]} 34. Rc6 {[%clk 0:02:05]}  Na8 {[%clk 0:01:38]} 35. Nd5+ {[%clk 0:02:02]}  Kd7 {[%clk 0:01:37]} 36. Rxa6 {[%clk 0:01:49]}  Nxc7 {[%clk 0:01:34]} 37. Nxc7 {[%clk 0:01:44]}  Rxc7 {[%clk 0:01:33]} 38. Rxg6 {[%clk 0:01:45]}  Rc2+ {[%clk 0:01:32]} 39. Kg3 {[%clk 0:01:45]}  f4+ {[%clk 0:01:31]} 40. Kh3 {[%clk 0:01:44]}  Rxa2 {[%clk 0:01:30]} 41. Rxg5 {[%clk 0:01:44]}  Ke6 {[%clk 0:01:30]} 42. Rg6+ {[%clk 0:01:44]}  Kd5 {[%clk 0:01:30]} 43. Rb6 {[%clk 0:01:43]}  Kc5 {[%clk 0:01:29]} 44. Re6 {[%clk 0:01:40]}  Kd5 {[%clk 0:01:29]} 45. Re8 {[%clk 0:01:38]}  Rb2 {[%clk 0:01:29]} 46. g4 {[%clk 0:01:38]}  Rxb3 {[%clk 0:01:27]} 47. g5 {[%clk 0:01:38]}  Rxf3+ {[%clk 0:01:26]} 48. Kg4 {[%clk 0:01:38]}  Rf2 {[%clk 0:01:26]} 49. h4 {[%clk 0:01:30]}  e4 {[%clk 0:01:26]} 50. h5 {[%clk 0:01:27]}  f3 {[%clk 0:01:26]} 51. h6 {[%clk 0:01:21]}  Rg2+ {[%clk 0:01:26]} 52. Kh4 {[%clk 0:01:19]}  f2 {[%clk 0:01:25]} 53. h7 {[%clk 0:01:18]}  f1=Q {[%clk 0:01:21]} 54. Rd8+ {[%clk 0:01:17]}  Kc5 {[%clk 0:01:17]} 55. Rc8+ {[%clk 0:01:17]}  Kb4 {[%clk 0:01:18]} 56. Kh5 {[%clk 0:01:17]}  Qf7+ {[%clk 0:01:14]} 57. Kh4 {[%clk 0:01:17]}  Qf3 {[%clk 0:01:10]} 58. Rc2 {[%clk 0:01:10]}  Qg4# {[%clk 0:01:09]} 0-1